[Event "*** SCC Grand Prix: Titled Tuesday Blitz"]
[Site "Chess.com"]
[Date "2020.06.23"]
[Round "8"]
[White "stanyga"]
[Black "Kezin_Roman"]
[Result "1-0"]
[WhiteElo "2628"]
[BlackElo "2773"]
[TimeControl "180+1"]
[EndTime "11:35:53 PDT"]
[Termination "stanyga won by checkmate"]

1. d4 {[%clk 0:03:00.9]} 1... d5 {[%clk 0:02:59.6]} 2. c4 {[%clk 0:03:00]} 2...
e6 {[%clk 0:02:59.9]} 3. Nc3 {[%clk 0:02:59.4]} 3... c6 {[%clk 0:02:59.1]} 4.
Nf3 {[%clk 0:02:58.3]} 4... Nf6 {[%clk 0:02:57.3]} 5. Bg5 {[%clk 0:02:57.4]}
5... dxc4 {[%clk 0:02:56.7]} 6. a4 {[%clk 0:02:52.1]} 6... b5 {[%clk 0:02:56]}
7. axb5 {[%clk 0:02:51]} 7... cxb5 {[%clk 0:02:56.9]} 8. Nxb5 {[%clk 0:02:47.1]}
8... Qb6 {[%clk 0:02:56.2]} 9. Nc3 {[%clk 0:02:40.3]} 9... Qxb2 {[%clk
0:02:51.7]} 10. Bd2 {[%clk 0:02:32.1]} 10... Nd5 {[%clk 0:02:49.5]} 11. Nxd5
{[%clk 0:02:11.6]} 11... exd5 {[%clk 0:02:50.4]} 12. Rb1 {[%clk 0:02:01.6]}
12... Qa3 {[%clk 0:02:47.4]} 13. e4 {[%clk 0:02:00.9]} 13... Bd6 {[%clk
0:02:45]} 14. exd5 {[%clk 0:01:31.7]} 14... O-O {[%clk 0:02:37.7]} 15. Bxc4
{[%clk 0:01:28.4]} 15... Re8+ {[%clk 0:02:37.4]} 16. Kf1 {[%clk 0:01:27.7]}
16... Ba6 {[%clk 0:02:33.1]} 17. Bxa6 {[%clk 0:01:16.7]} 17... Nxa6 {[%clk
0:02:23.8]} 18. g3 {[%clk 0:01:15.4]} 18... Nc7 {[%clk 0:02:23]} 19. Kg2 {[%clk
0:01:13.8]} 19... Nxd5 {[%clk 0:02:22.1]} 20. Re1 {[%clk 0:01:12.6]} 20... Qd3
{[%clk 0:02:01.2]} 21. Qa4 {[%clk 0:01:03.2]} 21... Rxe1 {[%clk 0:00:59.5]} 22.
Rxe1 {[%clk 0:01:01.7]} 22... Bf8 {[%clk 0:00:58.5]} 23. Qc6 {[%clk 0:00:37.2]}
23... Rd8 {[%clk 0:00:56.1]} 24. Re8 {[%clk 0:00:29.2]} 24... Ne7 {[%clk
0:00:12.8]} 25. Qa4 {[%clk 0:00:27.2]} 25... Rxe8 {[%clk 0:00:12.5]} 26. Qxe8
{[%clk 0:00:26.9]} 26... Qe4 {[%clk 0:00:12.4]} 27. Bb4 {[%clk 0:00:18.6]} 27...
h6 {[%clk 0:00:11.5]} 28. Bc5 {[%clk 0:00:12.1]} 28... Qb7 {[%clk 0:00:03.4]}
29. d5 {[%clk 0:00:10.7]} 29... Ng6 {[%clk 0:00:03]} 30. Bxf8 {[%clk 0:00:09.8]}
30... Nxf8 {[%clk 0:00:03.9]} 31. d6 {[%clk 0:00:08.8]} 31... Qd7 {[%clk
0:00:03.1]} 32. Qb8 {[%clk 0:00:07.7]} 32... a6 {[%clk 0:00:02.3]} 33. Ne5
{[%clk 0:00:07.8]} 33... Qe6 {[%clk 0:00:02.7]} 34. d7 {[%clk 0:00:07.9]} 34...
Qd5+ {[%clk 0:00:03.2]} 35. Kh3 {[%clk 0:00:05.5]} 35... Kh7 {[%clk 0:00:03.5]}
36. d8=Q {[%clk 0:00:04.5]} 36... Qe6+ {[%clk 0:00:04.4]} 37. Kg2 {[%clk
0:00:04.1]} 37... Ng6 {[%clk 0:00:04.3]} 38. Qg8# {[%clk 0:00:04]} 1-0

[Event "*** SCC Grand Prix: Titled Tuesday Blitz"]
[Site "Chess.com"]
[Date "2020.06.23"]
[Round "8"]
[White "Boninknights"]
[Black "DonBroca"]
[Result "1-0"]
[WhiteElo "2310"]
[BlackElo "2140"]
[TimeControl "180+1"]
[EndTime "11:35:54 PDT"]
[Termination "Boninknights won on time"]

1. d4 {[%clk 0:02:59.5]} 1... Nf6 {[%clk 0:02:44.8]} 2. Nf3 {[%clk 0:02:58.8]}
2... g6 {[%clk 0:02:43.7]} 3. c4 {[%clk 0:02:58.2]} 3... d6 {[%clk 0:02:43.6]}
4. Nc3 {[%clk 0:02:57.5]} 4... Bg7 {[%clk 0:02:41.1]} 5. e4 {[%clk 0:02:57]}
5... O-O {[%clk 0:02:39.6]} 6. Be2 {[%clk 0:02:56.5]} 6... Nc6 {[%clk
0:02:37.6]} 7. d5 {[%clk 0:02:55.4]} 7... Ne5 {[%clk 0:02:37.3]} 8. Nxe5 {[%clk
0:02:53.9]} 8... dxe5 {[%clk 0:02:38.2]} 9. O-O {[%clk 0:02:52.2]} 9... e6
{[%clk 0:02:38.2]} 10. Be3 {[%clk 0:02:51]} 10... exd5 {[%clk 0:02:37.2]} 11.
cxd5 {[%clk 0:02:50.5]} 11... Nd7 {[%clk 0:02:32.7]} 12. Rc1 {[%clk 0:02:47.4]}
12... a6 {[%clk 0:02:31]} 13. Qc2 {[%clk 0:02:43]} 13... Nb6 {[%clk 0:02:29.5]}
14. Nb1 {[%clk 0:02:37.3]} 14... f5 {[%clk 0:02:18.9]} 15. Qxc7 {[%clk
0:02:32.5]} 15... Nd7 {[%clk 0:02:05.7]} 16. Qxd8 {[%clk 0:02:29.9]} 16... Rxd8
{[%clk 0:02:05.1]} 17. f3 {[%clk 0:02:24.3]} 17... f4 {[%clk 0:01:58.6]} 18. Bf2
{[%clk 0:02:22.3]} 18... b5 {[%clk 0:01:53.6]} 19. Rc7 {[%clk 0:02:15.7]} 19...
Bf8 {[%clk 0:01:47.5]} 20. Rfc1 {[%clk 0:02:12.1]} 20... Bd6 {[%clk 0:01:47.3]}
21. R7c6 {[%clk 0:02:10.3]} 21... Nf8 {[%clk 0:01:33.6]} 22. Bb6 {[%clk
0:02:03.3]} 22... Bb7 {[%clk 0:01:26.2]} 23. Bxd8 {[%clk 0:01:56.3]} 23... Bxc6
{[%clk 0:01:25.8]} 24. Rxc6 {[%clk 0:01:54.1]} 24... Rxd8 {[%clk 0:01:24.5]} 25.
Rxa6 {[%clk 0:01:50.9]} 25... b4 {[%clk 0:01:21.9]} 26. Nd2 {[%clk 0:01:46.7]}
26... g5 {[%clk 0:00:50]} 27. Nc4 {[%clk 0:01:41]} 27... Bc7 {[%clk 0:00:50]}
28. d6 {[%clk 0:01:30.7]} 28... Bb8 {[%clk 0:00:47.8]} 29. Nxe5 {[%clk
0:01:26.5]} 29... Bxd6 {[%clk 0:00:44.8]} 30. Bc4+ {[%clk 0:01:23]} 30... Kg7
{[%clk 0:00:41.5]} 31. Nf7 {[%clk 0:01:04.9]} 31... Bc5+ {[%clk 0:00:41.4]} 32.
Kf1 {[%clk 0:01:04.6]} 32... Rd7 {[%clk 0:00:36.1]} 33. Nxg5 {[%clk 0:01:01.5]}
33... h6 {[%clk 0:00:32.3]} 34. Ne6+ {[%clk 0:00:59.3]} 34... Nxe6 {[%clk
0:00:29.6]} 35. Rxe6 {[%clk 0:00:56]} 35... Be3 {[%clk 0:00:23.6]} 36. Bd5
{[%clk 0:00:52.7]} 36... Rc7 {[%clk 0:00:20.9]} 37. Rc6 {[%clk 0:00:52]} 37...
Ra7 {[%clk 0:00:20.9]} 38. g4 {[%clk 0:00:49.4]} 38... Ra5 {[%clk 0:00:15]} 39.
h4 {[%clk 0:00:48.4]} 39... Rb5 {[%clk 0:00:12.7]} 40. h5 {[%clk 0:00:46.8]}
40... b3 {[%clk 0:00:13.1]} 41. Bxb3 {[%clk 0:00:42.9]} 41... Rb4 {[%clk
0:00:12]} 42. Ke2 {[%clk 0:00:41.1]} 42... Rd4 {[%clk 0:00:12.1]} 43. Rc2 {[%clk
0:00:37.1]} 43... Kf6 {[%clk 0:00:11.3]} 44. a4 {[%clk 0:00:34.3]} 44... Rb4
{[%clk 0:00:10.9]} 45. Rc3 {[%clk 0:00:31]} 45... Rd4 {[%clk 0:00:11.1]} 46. Rd3
{[%clk 0:00:29.7]} 46... Rb4 {[%clk 0:00:09.7]} 47. a5 {[%clk 0:00:28.6]} 47...
Rb5 {[%clk 0:00:08.9]} 48. a6 {[%clk 0:00:27.1]} 48... Ra5 {[%clk 0:00:09.1]}
49. Bc4 {[%clk 0:00:26.7]} 49... Ra1 {[%clk 0:00:07.2]} 50. Ra3 {[%clk
0:00:23.9]} 50... Rc1 {[%clk 0:00:05.9]} 51. a7 {[%clk 0:00:21.2]} 51... Rc2+
{[%clk 0:00:03.9]} 52. Kd3 {[%clk 0:00:17.1]} 52... Rd2+ {[%clk 0:00:02.1]} 53.
Kc3 {[%clk 0:00:16.4]} 1-0

[Event "*** SCC Grand Prix: Titled Tuesday Blitz"]
[Site "Chess.com"]
[Date "2020.06.23"]
[Round "8"]
[White "j2806"]
[Black "Rskaak"]
[Result "1-0"]
[WhiteElo "2060"]
[BlackElo "1684"]
[TimeControl "180+1"]
[EndTime "11:35:54 PDT"]
[Termination "j2806 won by resignation"]

1. e4 {[%clk 0:03:00.9]} 1... e6 {[%clk 0:02:59.3]} 2. d4 {[%clk 0:03:00.7]}
2... d5 {[%clk 0:03:00.2]} 3. exd5 {[%clk 0:03:00.1]} 3... exd5 {[%clk
0:03:01.1]} 4. Bd3 {[%clk 0:03:00.5]} 4... Bd6 {[%clk 0:03:01.4]} 5. h3 {[%clk
0:02:59.7]} 5... Ne7 {[%clk 0:02:57.4]} 6. Nf3 {[%clk 0:02:59.7]} 6... c6 {[%clk
0:02:56.5]} 7. c3 {[%clk 0:02:59.4]} 7... Be6 {[%clk 0:02:54.9]} 8. O-O {[%clk
0:02:59.3]} 8... Nd7 {[%clk 0:02:55.4]} 9. Re1 {[%clk 0:02:59.5]} 9... Qc7
{[%clk 0:02:55.8]} 10. Nbd2 {[%clk 0:02:56.3]} 10... O-O-O {[%clk 0:02:55.2]}
11. Qe2 {[%clk 0:02:54.7]} 11... Rde8 {[%clk 0:02:50.4]} 12. Ne5 {[%clk
0:02:54.6]} 12... Nxe5 {[%clk 0:02:47.8]} 13. dxe5 {[%clk 0:02:44.8]} 13... Bc5
{[%clk 0:02:47.6]} 14. Nb3 {[%clk 0:02:38.8]} 14... Bb6 {[%clk 0:02:46.8]} 15.
Nd4 {[%clk 0:02:37.4]} 15... Bd7 {[%clk 0:02:42.9]} 16. Bf4 {[%clk 0:02:33.6]}
16... Ng6 {[%clk 0:02:41.2]} 17. Bxg6 {[%clk 0:02:30.3]} 17... hxg6 {[%clk
0:02:39.3]} 18. Qf3 {[%clk 0:02:22.7]} 18... Be6 {[%clk 0:02:36.1]} 19. Rac1
{[%clk 0:02:01]} 19... Rh4 {[%clk 0:02:21.8]} 20. Bg3 {[%clk 0:01:52.6]} 20...
Rh5 {[%clk 0:02:19.3]} 21. Nxe6 {[%clk 0:01:42.8]} 21... Rxe6 {[%clk 0:02:18.7]}
22. c4 {[%clk 0:01:41.9]} 22... dxc4 {[%clk 0:02:02.7]} 23. Rxc4 {[%clk
0:01:39.5]} 23... Qe7 {[%clk 0:01:59.2]} 24. Rec1 {[%clk 0:01:22.1]} 24... Rf5
{[%clk 0:01:53.3]} 25. Qc3 {[%clk 0:01:03.4]} 25... Qg5 {[%clk 0:01:40.7]} 26.
b4 {[%clk 0:00:58.5]} 26... a6 {[%clk 0:01:37.5]} 27. a4 {[%clk 0:00:57]} 27...
Bc7 {[%clk 0:01:28.9]} 28. b5 {[%clk 0:00:50.1]} 28... Bxe5 {[%clk 0:01:28.1]}
29. Bxe5 {[%clk 0:00:48.5]} 29... Rfxe5 {[%clk 0:01:25.7]} 30. bxc6 {[%clk
0:00:47.7]} 30... bxc6 {[%clk 0:01:19.7]} 31. Rxc6+ {[%clk 0:00:47.4]} 31... Kd7
{[%clk 0:01:12.7]} 32. Rc7+ {[%clk 0:00:44.3]} 32... Ke8 {[%clk 0:01:06.3]} 33.
Rc8+ {[%clk 0:00:44.3]} 33... Ke7 {[%clk 0:01:06.4]} 34. Qa3+ {[%clk 0:00:34.1]}
34... Kf6 {[%clk 0:00:59.1]} 35. Rf1 {[%clk 0:00:26.5]} 35... Qf4 {[%clk
0:00:52.9]} 36. Rc3 {[%clk 0:00:20.5]} 36... Re1 {[%clk 0:00:50.2]} 37. Rf3
{[%clk 0:00:19]} 37... Rxf1+ {[%clk 0:00:40.1]} 38. Kxf1 {[%clk 0:00:19.2]}
38... Qxf3 {[%clk 0:00:35.7]} 39. Qxf3+ {[%clk 0:00:18.5]} 39... Ke7 {[%clk
0:00:36.6]} 40. Qb7+ {[%clk 0:00:18.3]} 40... Kf6 {[%clk 0:00:36.3]} 41. f4
{[%clk 0:00:17.7]} 41... Re7 {[%clk 0:00:26.9]} 42. Qxa6+ {[%clk 0:00:17.3]}
42... Re6 {[%clk 0:00:27.8]} 43. Qxe6+ {[%clk 0:00:17.1]} 43... Kxe6 {[%clk
0:00:27.2]} 44. Kf2 {[%clk 0:00:17.7]} 44... Kd6 {[%clk 0:00:26.5]} 45. Kf3
{[%clk 0:00:18]} 45... Kc6 {[%clk 0:00:26.8]} 46. Ke4 {[%clk 0:00:18.4]} 46...
Kb6 {[%clk 0:00:26.9]} 47. Kd5 {[%clk 0:00:18.9]} 47... Ka5 {[%clk 0:00:27.6]}
48. Kd6 {[%clk 0:00:19.4]} 48... Kxa4 {[%clk 0:00:28.3]} 49. Ke7 {[%clk
0:00:19.8]} 49... f6 {[%clk 0:00:24.4]} 50. Kf7 {[%clk 0:00:19.8]} 50... g5
{[%clk 0:00:24.7]} 51. fxg5 {[%clk 0:00:19.6]} 51... fxg5 {[%clk 0:00:24.4]} 52.
Kxg7 {[%clk 0:00:19.9]} 52... Kb5 {[%clk 0:00:24.2]} 53. Kg6 {[%clk 0:00:20.3]}
53... Kc5 {[%clk 0:00:25.1]} 54. Kxg5 {[%clk 0:00:20.7]} 54... Kd5 {[%clk
0:00:25.8]} 55. h4 {[%clk 0:00:21]} 55... Ke5 {[%clk 0:00:26.2]} 56. h5 {[%clk
0:00:20.7]} 56... Ke6 {[%clk 0:00:26.9]} 57. Kg6 {[%clk 0:00:21.2]} 57... Ke7
{[%clk 0:00:26.1]} 58. Kg7 {[%clk 0:00:21.5]} 58... Ke6 {[%clk 0:00:26.1]} 59.
h6 {[%clk 0:00:22.1]} 59... Kf5 {[%clk 0:00:26.7]} 60. h7 {[%clk 0:00:22.7]}
60... Kg4 {[%clk 0:00:27.1]} 61. h8=Q {[%clk 0:00:22.9]} 1-0

[Event "*** SCC Grand Prix: Titled Tuesday Blitz"]
[Site "Chess.com"]
[Date "2020.06.23"]
[Round "8"]
[White "Onischuk_V"]
[Black "viditchess"]
[Result "1-0"]
[WhiteElo "2912"]
[BlackElo "3022"]
[TimeControl "180+1"]
[EndTime "11:36:01 PDT"]
[Termination "Onischuk_V won on time"]

1. e4 {[%clk 0:02:59]} 1... c5 {[%clk 0:02:58.2]} 2. Ne2 {[%clk 0:02:59]} 2...
Nc6 {[%clk 0:02:57.9]} 3. Nbc3 {[%clk 0:02:54.8]} 3... Nf6 {[%clk 0:02:57.5]} 4.
g3 {[%clk 0:02:54.5]} 4... g6 {[%clk 0:02:56.6]} 5. d4 {[%clk 0:02:51.8]} 5...
cxd4 {[%clk 0:02:57.5]} 6. Nxd4 {[%clk 0:02:51.9]} 6... Bg7 {[%clk 0:02:58]} 7.
Nb3 {[%clk 0:02:52.1]} 7... O-O {[%clk 0:02:57.6]} 8. Bg2 {[%clk 0:02:51.8]}
8... d6 {[%clk 0:02:58.3]} 9. h3 {[%clk 0:02:52.3]} 9... Rb8 {[%clk 0:02:57.2]}
10. a4 {[%clk 0:02:49.7]} 10... a6 {[%clk 0:02:45.6]} 11. O-O {[%clk 0:02:49]}
11... b5 {[%clk 0:02:44.9]} 12. axb5 {[%clk 0:02:48.5]} 12... axb5 {[%clk
0:02:45.8]} 13. Nd5 {[%clk 0:02:48.1]} 13... Nd7 {[%clk 0:02:43.5]} 14. c3
{[%clk 0:02:13.6]} 14... Nde5 {[%clk 0:02:37.7]} 15. Nd4 {[%clk 0:02:05.4]}
15... Bd7 {[%clk 0:02:31.7]} 16. Nxc6 {[%clk 0:02:01.2]} 16... Bxc6 {[%clk
0:02:29]} 17. Nb4 {[%clk 0:02:01]} 17... Bb7 {[%clk 0:02:26.4]} 18. Qe2 {[%clk
0:02:00.9]} 18... Qd7 {[%clk 0:02:23.8]} 19. Rd1 {[%clk 0:01:56.2]} 19... Ra8
{[%clk 0:02:22.9]} 20. Be3 {[%clk 0:01:52.3]} 20... Rxa1 {[%clk 0:01:56.3]} 21.
Rxa1 {[%clk 0:01:51.5]} 21... Ra8 {[%clk 0:01:57]} 22. Rxa8+ {[%clk 0:01:47.8]}
22... Bxa8 {[%clk 0:01:57.9]} 23. Bd4 {[%clk 0:01:46.5]} 23... Nc4 {[%clk
0:01:54.1]} 24. b3 {[%clk 0:01:43.4]} 24... Na5 {[%clk 0:01:34.4]} 25. Qa2
{[%clk 0:01:41.5]} 25... Qd8 {[%clk 0:01:31.4]} 26. Bxg7 {[%clk 0:01:29.7]}
26... Kxg7 {[%clk 0:01:32.3]} 27. Nd5 {[%clk 0:01:30.1]} 27... Bxd5 {[%clk
0:01:27.4]} 28. exd5 {[%clk 0:01:29.9]} 28... Qb6 {[%clk 0:01:23.1]} 29. Qa3
{[%clk 0:01:26.6]} 29... Nb7 {[%clk 0:00:59.2]} 30. b4 {[%clk 0:01:26.4]} 30...
Nd8 {[%clk 0:00:48.6]} 31. Qa5 {[%clk 0:01:22.5]} 31... Qb8 {[%clk 0:00:42.9]}
32. Bf1 {[%clk 0:01:22.6]} 32... Qc8 {[%clk 0:00:37.9]} 33. Bxb5 {[%clk
0:01:20.4]} 33... e6 {[%clk 0:00:27.6]} 34. c4 {[%clk 0:01:11]} 34... exd5
{[%clk 0:00:19.4]} 35. cxd5 {[%clk 0:01:11]} 35... f6 {[%clk 0:00:18.7]} 36.
Qa7+ {[%clk 0:01:06.3]} 36... Nf7 {[%clk 0:00:16.9]} 37. Bd7 {[%clk 0:01:01]}
37... Qc1+ {[%clk 0:00:14.3]} 38. Kg2 {[%clk 0:01:00.5]} 38... Kh6 {[%clk
0:00:14.3]} 39. Be6 {[%clk 0:00:47.3]} 39... Ng5 {[%clk 0:00:07]} 40. h4 {[%clk
0:00:43.8]} 40... Nxe6 {[%clk 0:00:03.7]} 41. dxe6 {[%clk 0:00:42.6]} 41... Qc6+
{[%clk 0:00:04.6]} 42. Kh2 {[%clk 0:00:41.9]} 42... g5 {[%clk 0:00:04.8]} 43.
Qe3 {[%clk 0:00:39]} 43... Kg7 {[%clk 0:00:02.5]} 44. hxg5 {[%clk 0:00:38.5]}
44... Qe8 {[%clk 0:00:03.4]} 45. gxf6+ {[%clk 0:00:35.1]} 45... Kxf6 {[%clk
0:00:02.9]} 46. Qf4+ {[%clk 0:00:35.1]} 46... Ke7 {[%clk 0:00:02]} 47. Qf7+
{[%clk 0:00:34.7]} 47... Qxf7 {[%clk 0:00:02.2]} 48. exf7 {[%clk 0:00:35]} 48...
Kxf7 {[%clk 0:00:03.1]} 49. f4 {[%clk 0:00:34.8]} 49... Ke6 {[%clk 0:00:03.2]}
50. Kg2 {[%clk 0:00:35.2]} 50... Kd5 {[%clk 0:00:03.4]} 51. Kf3 {[%clk
0:00:34.7]} 51... Kc4 {[%clk 0:00:03.7]} 52. f5 {[%clk 0:00:35.1]} 52... Kd5
{[%clk 0:00:01.9]} 53. b5 {[%clk 0:00:34.2]} 1-0

[Event "*** SCC Grand Prix: Titled Tuesday Blitz"]
[Site "Chess.com"]
[Date "2020.06.23"]
[Round "8"]
[White "youngKID"]
[Black "chipmunknau"]
[Result "0-1"]
[WhiteElo "2743"]
[BlackElo "2611"]
[TimeControl "180+1"]
[EndTime "11:36:01 PDT"]
[Termination "chipmunknau won by resignation"]

1. e4 {[%clk 0:03:00.9]} 1... c6 {[%clk 0:02:59.7]} 2. Nc3 {[%clk 0:02:59.5]}
2... d5 {[%clk 0:03:00.6]} 3. Nf3 {[%clk 0:02:59.3]} 3... Bg4 {[%clk 0:03:00.3]}
4. h3 {[%clk 0:02:59]} 4... Bxf3 {[%clk 0:03:00.2]} 5. Qxf3 {[%clk 0:02:59.9]}
5... e6 {[%clk 0:03:00.6]} 6. g3 {[%clk 0:02:59.4]} 6... Nf6 {[%clk 0:03:00.7]}
7. Bg2 {[%clk 0:02:54.1]} 7... d4 {[%clk 0:02:57.2]} 8. Ne2 {[%clk 0:02:53.6]}
8... c5 {[%clk 0:02:57.1]} 9. d3 {[%clk 0:02:49.4]} 9... Nc6 {[%clk 0:02:56.8]}
10. g4 {[%clk 0:02:49.5]} 10... Nb4 {[%clk 0:02:54.6]} 11. O-O {[%clk
0:02:36.2]} 11... Nxc2 {[%clk 0:02:53.1]} 12. Rb1 {[%clk 0:02:36.4]} 12... Nb4
{[%clk 0:02:49.8]} 13. a3 {[%clk 0:02:35.4]} 13... Nc6 {[%clk 0:02:49.4]} 14.
Qg3 {[%clk 0:02:34.6]} 14... e5 {[%clk 0:02:48.9]} 15. f4 {[%clk 0:02:34.1]}
15... Bd6 {[%clk 0:02:47.5]} 16. f5 {[%clk 0:02:30]} 16... h6 {[%clk 0:02:26]}
17. Bd2 {[%clk 0:02:17.4]} 17... b5 {[%clk 0:02:23.6]} 18. Rbc1 {[%clk
0:02:13.8]} 18... Rc8 {[%clk 0:02:18.5]} 19. b4 {[%clk 0:02:06.3]} 19... cxb4
{[%clk 0:02:14.8]} 20. axb4 {[%clk 0:02:06.1]} 20... Nxb4 {[%clk 0:02:14]} 21.
Bxb4 {[%clk 0:02:01.5]} 21... Rxc1 {[%clk 0:02:07.1]} 22. Rxc1 {[%clk
0:02:00.4]} 22... Bxb4 {[%clk 0:02:07]} 23. Qxe5+ {[%clk 0:02:00.5]} 23... Be7
{[%clk 0:02:07.1]} 24. Qxb5+ {[%clk 0:02:00.1]} 24... Nd7 {[%clk 0:02:00.3]} 25.
Nxd4 {[%clk 0:01:32.2]} 25... O-O {[%clk 0:01:55.6]} 26. Nc6 {[%clk 0:01:31.1]}
26... Qe8 {[%clk 0:01:52.3]} 27. e5 {[%clk 0:01:10]} 27... Bg5 {[%clk
0:01:47.4]} 28. Re1 {[%clk 0:01:06.2]} 28... Nb6 {[%clk 0:01:27.2]} 29. Nxa7
{[%clk 0:00:54.8]} 29... Qxb5 {[%clk 0:01:28.1]} 30. Nxb5 {[%clk 0:00:54.8]}
30... Rd8 {[%clk 0:01:28.7]} 31. Be4 {[%clk 0:00:41.1]} 31... Nd5 {[%clk
0:01:18.5]} 32. d4 {[%clk 0:00:32.4]} 32... Nf4 {[%clk 0:01:13.4]} 33. Kh2
{[%clk 0:00:29.1]} 33... Rb8 {[%clk 0:01:01.1]} 34. Rb1 {[%clk 0:00:25.3]} 34...
Ne2 {[%clk 0:00:55.9]} 35. Bd3 {[%clk 0:00:25.5]} 35... Nf4 {[%clk 0:00:27.8]}
36. Bc4 {[%clk 0:00:24.2]} 36... Kf8 {[%clk 0:00:20]} 37. Kg3 {[%clk 0:00:20.8]}
37... Rc8 {[%clk 0:00:10.6]} 38. Nd6 {[%clk 0:00:20.5]} 38... Ra8 {[%clk
0:00:10.5]} 39. h4 {[%clk 0:00:18.2]} 39... Ra3+ {[%clk 0:00:10.4]} 40. Rb3
{[%clk 0:00:17.4]} 40... Ne2+ {[%clk 0:00:10.4]} 41. Kf2 {[%clk 0:00:16.6]}
41... Rxb3 {[%clk 0:00:07.5]} 42. h5 {[%clk 0:00:15.1]} 42... Nxd4 {[%clk
0:00:03.7]} 43. Bxb3 {[%clk 0:00:13.3]} 43... Nxb3 {[%clk 0:00:04.6]} 44. Kf3
{[%clk 0:00:13.2]} 44... Ke7 {[%clk 0:00:04.1]} 45. Ke4 {[%clk 0:00:11.8]} 45...
Nd2+ {[%clk 0:00:04.2]} 46. Kd5 {[%clk 0:00:12.1]} 46... Nf1 {[%clk 0:00:03.8]}
47. f6+ {[%clk 0:00:08.8]} 47... gxf6 {[%clk 0:00:03.5]} 48. Nf5+ {[%clk
0:00:09.5]} 48... Kf8 {[%clk 0:00:03.4]} 49. exf6 {[%clk 0:00:03.7]} 49... Nh2
{[%clk 0:00:03.2]} 50. Ne3 {[%clk 0:00:04.3]} 50... Bxe3 {[%clk 0:00:02.9]} 0-1

[Event "*** SCC Grand Prix: Titled Tuesday Blitz"]
[Site "Chess.com"]
[Date "2020.06.23"]
[Round "8"]
[White "MrChampion_Coach"]
[Black "GelmanAlexander"]
[Result "0-1"]
[WhiteElo "2430"]
[BlackElo "2554"]
[TimeControl "180+1"]
[EndTime "11:36:01 PDT"]
[Termination "GelmanAlexander won by checkmate"]

1. d4 {[%clk 0:03:00.6]} 1... Nf6 {[%clk 0:02:59.9]} 2. Bg5 {[%clk 0:02:58.3]}
2... c5 {[%clk 0:03:00]} 3. d5 {[%clk 0:02:57.8]} 3... g6 {[%clk 0:02:58.4]} 4.
Bxf6 {[%clk 0:02:57.3]} 4... exf6 {[%clk 0:02:59.3]} 5. g3 {[%clk 0:02:40.5]}
5... d6 {[%clk 0:02:58.9]} 6. Bg2 {[%clk 0:02:40.3]} 6... f5 {[%clk 0:02:58.5]}
7. Nd2 {[%clk 0:02:40.1]} 7... Bg7 {[%clk 0:02:58.5]} 8. c3 {[%clk 0:02:40.3]}
8... Nd7 {[%clk 0:02:56]} 9. Nh3 {[%clk 0:02:40]} 9... h5 {[%clk 0:02:52.2]} 10.
Nf3 {[%clk 0:02:28.9]} 10... Ne5 {[%clk 0:02:45]} 11. Nf4 {[%clk 0:02:13.9]}
11... h4 {[%clk 0:02:18.1]} 12. Qb3 {[%clk 0:01:48.7]} 12... g5 {[%clk
0:01:40.5]} 13. Nxe5 {[%clk 0:01:47.6]} 13... gxf4 {[%clk 0:01:29.2]} 14. Qa4+
{[%clk 0:01:38.2]} 14... Kf8 {[%clk 0:01:28.6]} 15. Nd3 {[%clk 0:01:35.4]} 15...
fxg3 {[%clk 0:01:21.7]} 16. hxg3 {[%clk 0:01:35.2]} 16... hxg3 {[%clk
0:01:21.3]} 17. Rxh8+ {[%clk 0:01:36.1]} 17... Bxh8 {[%clk 0:01:21.9]} 18. fxg3
{[%clk 0:01:36.3]} 18... Bd7 {[%clk 0:01:13.6]} 19. Qf4 {[%clk 0:01:31.4]} 19...
Qe7 {[%clk 0:01:10.1]} 20. Kf2 {[%clk 0:01:10.1]} 20... Re8 {[%clk 0:01:02.2]}
21. Bf3 {[%clk 0:01:09.4]} 21... Bg7 {[%clk 0:01:01.4]} 22. Rh1 {[%clk
0:01:08.3]} 22... Qf6 {[%clk 0:01:01.7]} 23. Rh5 {[%clk 0:01:01.6]} 23... Qg6
{[%clk 0:00:52.1]} 24. Qh4 {[%clk 0:00:53.8]} 24... b5 {[%clk 0:00:45.8]} 25.
Nf4 {[%clk 0:00:53.1]} 25... Qf6 {[%clk 0:00:45.5]} 26. Qh1 {[%clk 0:00:48.4]}
26... b4 {[%clk 0:00:41.7]} 27. cxb4 {[%clk 0:00:36.7]} 27... Qxb2 {[%clk
0:00:32.7]} 28. bxc5 {[%clk 0:00:35.2]} 28... dxc5 {[%clk 0:00:29.2]} 29. Rh7
{[%clk 0:00:28.4]} 29... Bb5 {[%clk 0:00:22.8]} 30. d6 {[%clk 0:00:19.4]} 30...
Qd4+ {[%clk 0:00:22.5]} 31. Kg2 {[%clk 0:00:19.2]} 31... Qxd6 {[%clk 0:00:22.6]}
32. Nh5 {[%clk 0:00:16.2]} 32... Bxe2 {[%clk 0:00:17.1]} 33. Bxe2 {[%clk
0:00:13.6]} 33... Rxe2+ {[%clk 0:00:16.4]} 34. Kh3 {[%clk 0:00:14.5]} 34... Qg6
{[%clk 0:00:11.8]} 35. Qa8+ {[%clk 0:00:09.7]} 35... Re8 {[%clk 0:00:10.6]} 36.
Qxe8+ {[%clk 0:00:07]} 36... Kxe8 {[%clk 0:00:10.5]} 37. Nxg7+ {[%clk
0:00:07.5]} 37... Kf8 {[%clk 0:00:09.2]} 38. Ne6+ {[%clk 0:00:06.7]} 38... Qxe6
{[%clk 0:00:08.9]} 39. Rh8+ {[%clk 0:00:07.6]} 39... Ke7 {[%clk 0:00:09.2]} 40.
Rh4 {[%clk 0:00:08]} 40... Qxa2 {[%clk 0:00:09.2]} 41. Rf4 {[%clk 0:00:08.9]}
41... Qe6 {[%clk 0:00:09.3]} 42. Kg2 {[%clk 0:00:09.4]} 42... a5 {[%clk
0:00:09.9]} 43. Kf3 {[%clk 0:00:10.3]} 43... c4 {[%clk 0:00:10.5]} 44. Rd4
{[%clk 0:00:09.4]} 44... a4 {[%clk 0:00:10.8]} 45. Rd1 {[%clk 0:00:09.1]} 45...
a3 {[%clk 0:00:11.3]} 46. Rd2 {[%clk 0:00:09]} 46... Qe4+ {[%clk 0:00:11.6]} 47.
Kf2 {[%clk 0:00:08.7]} 47... c3 {[%clk 0:00:12.5]} 48. Re2 {[%clk 0:00:08.8]}
48... a2 {[%clk 0:00:12.7]} 49. Rxe4+ {[%clk 0:00:08.7]} 49... fxe4 {[%clk
0:00:13.6]} 50. Ke3 {[%clk 0:00:09.3]} 50... a1=Q {[%clk 0:00:13.9]} 51. Kf4
{[%clk 0:00:10.2]} 51... c2 {[%clk 0:00:14.4]} 52. g4 {[%clk 0:00:10.2]} 52...
c1=Q+ {[%clk 0:00:14.9]} 53. Kf5 {[%clk 0:00:10.3]} 53... Qf6+ {[%clk
0:00:14.3]} 54. Kxe4 {[%clk 0:00:09.5]} 54... Qcf4+ {[%clk 0:00:14.9]} 55. Kd3
{[%clk 0:00:09.4]} 55... Q6d4+ {[%clk 0:00:15.4]} 56. Kc2 {[%clk 0:00:10.3]}
56... Qfd2+ {[%clk 0:00:15.6]} 57. Kb3 {[%clk 0:00:09.9]} 57... Q4b4# {[%clk
0:00:16.1]} 0-1